bitfinex/quotes_BTCUSD_20250131
["timestamp","ask_amount","ask_price","bid_price","bid_amount"]
[1738349836392,1.10066525,102860.0,102850.0,0.02325578]
[1738349836806,1.10066525,102860.0,102850.0,0.02525578]
[1738349837002,1.10166525,102860.0,102850.0,0.02625578]
[1738349837246,0.146829,102860.0,102850.0,0.04281694]
[1738349837478,0.146829,102860.0,102850.0,0.02625578]
[1738349838270,1.10166525,102860.0,102850.0,0.02625578]
[1738349838481,0.146829,102860.0,102850.0,0.02625578]
[1738349839106,1.10166525,102860.0,102850.0,0.02625578]
[1738349839894,1.10166525,102860.0,102850.0,0.00325578]
[1738349839895,0.146829,102860.0,102850.0,0.00325578]
[1738349840078,0.24418576,102860.0,102850.0,0.00325578]
[1738349840280,0.146829,102860.0,102850.0,0.00325578]
[1738349840491,0.146829,102860.0,102850.0,0.02625578]
[1738349840623,0.24528743,102860.0,102850.0,0.00325578]
[1738349840822,0.24407216,102860.0,102850.0,0.00325578]
[1738349841445,0.146829,102860.0,102850.0,0.00325578]
[1738349841653,0.146829,102860.0,102850.0,0.02625578]
[1738349842525,0.24430756,102860.0,102850.0,0.02625578]
[1738349843224,0.1469508,102860.0,102850.0,0.02625578]
[1738349843438,0.43614765,102860.0,102850.0,0.00325578]
[1738349843669,0.24419396,102860.0,102850.0,0.00325578]
[1738349845921,0.1469508,102860.0,102850.0,0.00325578]
[1738349846139,0.1469508,102860.0,102850.0,0.02625578]
[1738349846552,0.1469508,102860.0,102850.0,0.03885578]
[1738349846756,0.1469508,102860.0,102850.0,0.01585578]
[1738349847977,0.1469508,102860.0,102850.0,0.03885578]
[1738349848595,0.1469508,102860.0,102850.0,0.36275578]
[1738349849003,0.1369478,102870.0,102850.0,1.12809894]
[1738349849207,1.43252216,102910.0,102870.0,0.318809]
[1738349849424,0.145795,102890.0,102870.0,1.13614316]
[1738349849625,0.534573,102890.0,102870.0,1.13614316]
[1738349849967,0.95484289,102910.0,102890.0,0.023]
[1738349850130,0.95484289,102910.0,102900.0,0.41601516]
[1738349850131,6.64e-06,102910.0,102900.0,0.41601516]
[1738349850330,6.64e-06,102910.0,102900.0,2.56188019]
[1738349850565,6.64e-06,102910.0,102900.0,2.13944316]
[1738349850773,6.64e-06,102910.0,102900.0,0.4731]
[1738349850976,6.64e-06,102910.0,102900.0,0.57034316]
[1738349851148,6.64e-06,102910.0,102900.0,0.86611516]
[1738349851493,6.64e-06,102910.0,102900.0,0.72034316]
[1738349851693,0.14576464,102910.0,102900.0,0.6231]
[1738349851943,0.14576464,102910.0,102900.0,0.3489]
[1738349852141,0.33771773,102910.0,102900.0,0.3259]
[1738349852341,0.14576464,102910.0,102900.0,0.3529]
[1738349853251,0.14576464,102910.0,102900.0,0.3489]
[1738349853455,0.14576464,102910.0,102900.0,0.3469]
[1738349853824,0.14776464,102910.0,102900.0,0.3469]
[1738349854156,6.64e-06,102910.0,102900.0,0.3469]
[1738349854570,0.00300664,102910.0,102900.0,0.73991516]
[1738349854911,0.01200664,102910.0,102900.0,0.74091516]
[1738349855122,6.64e-06,102910.0,102900.0,2.15901516]
[1738349855276,6.64e-06,102910.0,102900.0,2.16301516]
[1738349855485,6.64e-06,102910.0,102900.0,2.16501516]
[1738349855867,6.64e-06,102910.0,102900.0,2.26237192]
[1738349856498,6.64e-06,102910.0,102900.0,2.33927192]
[1738349856706,6.64e-06,102910.0,102900.0,1.899]
[1738349856922,6.64e-06,102910.0,102900.0,1.99624316]
[1738349857124,6.64e-06,102910.0,102900.0,2.01924316]
[1738349858354,6.64e-06,102910.0,102900.0,1.899]
[1738349858898,6.64e-06,102910.0,102900.0,1.38]
[1738349859098,6.64e-06,102910.0,102900.0,1.525772]
[1738349859306,6.64e-06,102910.0,102900.0,1.38]
[1738349859735,6.64e-06,102910.0,102900.0,2.58442254]
[1738349860344,6.64e-06,102910.0,102900.0,2.29071516]
[1738349860775,6.64e-06,102910.0,102900.0,2.28471516]
[1738349861003,0.00100664,102910.0,102900.0,2.38807192]
[1738349861207,0.00100664,102910.0,102900.0,2.39107192]
[1738349862261,0.00100664,102910.0,102900.0,2.14794316]
[1738349862442,0.14676464,102910.0,102900.0,1.99924316]
[1738349862700,0.14676464,102910.0,102900.0,2.02224316]
[1738349863423,0.340203,102920.0,102910.0,0.023]
[1738349864519,0.340203,102920.0,102910.0,0.028]
[1738349864940,0.340203,102920.0,102910.0,0.12535676]
[1738349865147,0.340203,102920.0,102910.0,0.028]
[1738349865978,0.340203,102920.0,102910.0,0.005]
[1738349865979,0.73115354,102920.0,102910.0,0.005]
[1738349866192,0.80685354,102920.0,102910.0,0.005]
[1738349866367,0.98685354,102920.0,102910.0,0.005]
[1738349866748,1.03585354,102920.0,102910.0,0.003]
[1738349866948,1.1332103,102920.0,102910.0,0.003]
[1738349867137,0.1458,102880.0,102870.0,1.20125578]
[1738349867363,1.10063625,102880.0,102870.0,1.20125578]
[1738349867599,1.10063625,102880.0,102870.0,0.32415578]
[1738349867808,1.58894355,102880.0,102870.0,0.00025578]
[1738349868639,1.45078355,102880.0,102870.0,0.00425578]
[1738349868875,1.59658355,102880.0,102870.0,0.00025578]
[1738349870044,1.59958355,102880.0,102870.0,0.00025578]
[1738349870907,1.60858355,102880.0,102870.0,0.00125578]
[1738349871166,1.51122679,102880.0,102870.0,0.00125578]
[1738349871587,1.54122679,102880.0,102870.0,0.00125578]
[1738349871993,1.69122679,102880.0,102870.0,0.00125578]
[1738349872201,1.66122679,102880.0,102870.0,7.8e-07]
[1738349872401,1.83228355,102880.0,102870.0,7.8e-07]
[1738349872604,0.315829,102860.0,102850.0,0.02285578]
[1738349872814,1.78831579,102860.0,102850.0,0.02285578]
[1738349874148,1.76831579,102860.0,102850.0,0.02285578]
[1738349874606,1.78354559,102860.0,102850.0,0.02285578]
[1738349874809,1.79497576,102860.0,102850.0,0.02285578]
[1738349875229,1.80261576,102860.0,102850.0,0.02285578]
[1738349875433,1.81161576,102860.0,102850.0,0.02285578]
[1738349875609,1.82061576,102860.0,102850.0,0.02285578]
[1738349875806,1.82061576,102860.0,102850.0,7.8e-07]
[1738349875984,1.81161576,102860.0,102850.0,7.8e-07]
[1738349876532,1.82061576,102860.0,102850.0,7.8e-07]
[1738349876729,1.89984126,102860.0,102850.0,7.8e-07]
[1738349876932,1.70887482,102860.0,102850.0,7.8e-07]
[1738349877139,1.71787482,102860.0,102850.0,7.8e-07]
[1738349879139,1.52690838,102860.0,102850.0,9.8e-07]
[1738349879581,1.51926838,102860.0,102850.0,9.8e-07]
[1738349879766,1.51547821,102860.0,102850.0,9.8e-07]
[1738349880205,1.50783821,102860.0,102850.0,9.8e-07]
[1738349880411,1.51547821,102860.0,102850.0,9.8e-07]
[1738349880620,1.70644465,102860.0,102850.0,9.8e-07]
[1738349881033,0.315843,102850.0,102840.0,7.6e-07]
[1738349881245,0.8723758,102850.0,102840.0,7.6e-07]
[1738349882386,0.68140936,102850.0,102840.0,7.6e-07]
[1738349882984,0.72034636,102850.0,102840.0,7.6e-07]
[1738349884304,0.74034636,102850.0,102840.0,7.6e-07]
[1738349884528,0.74034636,102850.0,102800.0,0.023]
[1738349884529,0.1459,102810.0,102800.0,0.02257984]
[1738349884688,1.10073625,102810.0,102800.0,0.02257984]
[1738349885095,0.145914,102800.0,102790.0,0.6167027]
[1738349885499,0.54033632,102800.0,102790.0,0.0747027]
[1738349885699,0.25079716,102800.0,102790.0,0.0747027]
[1738349886365,0.25179716,102800.0,102790.0,0.0767027]
[1738349886844,0.4427636,102800.0,102790.0,0.002]
[1738349887081,0.78373004,102800.0,102790.0,0.002]
[1738349887309,0.9110868,102800.0,102790.0,0.002]
[1738349887519,0.9110868,102800.0,102790.0,0.005]
[1738349887730,0.9034468,102800.0,102790.0,0.005]
[1738349887951,0.72012036,102800.0,102790.0,0.005]
[1738349888161,0.70148036,102800.0,102790.0,0.003]
[1738349888363,0.68912036,102800.0,102790.0,0.003]
[1738349888578,0.71012036,102800.0,102790.0,0.003]
[1738349888784,0.145956,102770.0,102760.0,0.12985599]
[1738349889003,0.15738617,102770.0,102760.0,0.12985599]
[1738349889206,0.145956,102770.0,102760.0,0.15285599]
[1738349890299,0.146956,102770.0,102760.0,0.15285599]
[1738349894783,0.14528517,102770.0,102760.0,0.15285599]
[1738349895828,0.43349477,102770.0,102760.0,0.00025599]
[1738349896397,0.43329477,102770.0,102760.0,0.00025599]
[1738349896600,0.53065153,102770.0,102760.0,0.00025599]
[1738349896825,0.43329477,102770.0,102760.0,0.00025599]
[1738349897037,0.45229477,102770.0,102760.0,0.00025599]
[1738349897319,0.46429477,102770.0,102760.0,0.00025599]
[1738349897718,0.145999,102740.0,102730.0,0.07326713]
[1738349897920,0.145999,102740.0,102730.0,0.09626713]
[1738349900055,0.147999,102740.0,102730.0,0.09626713]
[1738349900852,0.155999,102740.0,102730.0,0.09626713]
[1738349901672,0.155999,102740.0,102730.0,0.07326713]
[1738349902074,0.155999,102740.0,102730.0,0.09626713]
[1738349902511,0.155999,102740.0,102730.0,0.09638933]
[1738349902885,0.15625562,102740.0,102730.0,0.09638933]
[1738349903669,1.11109187,102740.0,102730.0,0.09638933]
[1738349903866,1.10309187,102740.0,102730.0,0.09638933]
[1738349904116,0.14825562,102740.0,102730.0,0.09638933]
[1738349904325,0.14925562,102740.0,102730.0,0.09738933]
[1738349905113,0.14725562,102740.0,102730.0,0.09738933]
[1738349906059,0.00125662,102740.0,102730.0,1.06222]
[1738349906260,0.00125662,102740.0,102730.0,1.30168644]
[1738349906914,0.00125662,102740.0,102730.0,0.75968644]
[1738349907117,0.14593,102790.0,102780.0,0.023]
[1738349907332,0.14593,102790.0,102770.0,0.8165]
[1738349907568,0.145942,102780.0,102770.0,0.0495]
[1738349907771,0.202205,102800.0,102770.0,0.22174316]
[1738349907951,0.340475,102800.0,102780.0,0.24318316]
[1738349908184,0.2286005,102800.0,102770.0,0.270447]
[1738349908388,0.340484,102800.0,102770.0,0.36769316]
[1738349908569,0.340484,102800.0,102780.0,0.023]
[1738349908570,0.145928,102790.0,102780.0,0.023]
[1738349908771,0.535048,102800.0,102780.0,0.17877218]
[1738349909069,0.145928,102790.0,102780.0,0.17877218]
[1738349909335,0.535048,102800.0,102780.0,0.17877218]
[1738349909508,0.536048,102800.0,102780.0,0.17877218]
[1738349909813,0.341488,102800.0,102780.0,0.32877218]
[1738349910052,0.340455,102810.0,102800.0,0.023]
[1738349910254,0.340455,102810.0,102800.0,0.1023]
[1738349910692,0.145928,102790.0,102780.0,0.6275]
[1738349911059,0.34049,102800.0,102790.0,0.023]
[1738349911646,0.4341366,102800.0,102770.0,0.669]
[1738349911854,0.33690844,102780.0,102770.0,0.542]
[1738349912054,0.34454844,102780.0,102770.0,0.542]
[1738349912260,0.34454844,102780.0,102750.0,0.1226]
[1738349912261,0.39320636,102780.0,102750.0,0.1226]
[1738349912477,0.145971,102760.0,102750.0,0.6646]
[1738349912879,0.145971,102760.0,102750.0,0.1456]
[1738349913112,0.145971,102760.0,102750.0,0.1226]
[1738349913313,0.145971,102760.0,102750.0,0.1256]
[1738349913775,0.145971,102760.0,102750.0,0.6906]
[1738349914184,0.502299,102760.0,102750.0,0.003]
[1738349914619,0.145971,102760.0,102750.0,0.003]
[1738349914954,0.145971,102760.0,102750.0,0.568]
[1738349915219,0.145971,102760.0,102750.0,0.565]
[1738349915555,0.146971,102760.0,102750.0,0.568]
[1738349916181,0.145971,102760.0,102750.0,0.565]
[1738349916381,0.145971,102760.0,102750.0,0.568]
[1738349917353,1.10080725,102760.0,102750.0,0.568]
[1738349917822,1.38901685,102760.0,102750.0,0.003]
[1738349919665,1.38881685,102760.0,102750.0,0.003]
[1738349919923,0.145999,102740.0,102730.0,0.0001222]
[1738349920115,1.10083525,102740.0,102730.0,0.0001222]
[1738349920407,1.10083525,102740.0,102730.0,0.0231222]
[1738349921398,1.10183525,102740.0,102730.0,0.0251222]
[1738349921601,1.10183525,102740.0,102730.0,0.0281222]
[1738349922758,1.39004485,102740.0,102730.0,0.0051222]
[1738349922929,1.10183525,102740.0,102730.0,0.0051222]
[1738349925660,1.29280169,102740.0,102730.0,0.0051222]
[1738349925877,1.39004485,102740.0,102730.0,0.0051222]
[1738349926086,1.56650161,102740.0,102730.0,0.0051222]
[1738349926300,1.58650161,102740.0,102730.0,0.0051222]
[1738349926517,1.49504161,102740.0,102730.0,0.0051222]
[1738349926730,1.49404161,102740.0,102730.0,0.0001222]
[1738349926945,1.50304161,102740.0,102730.0,0.0001222]
[1738349927151,1.50040161,102740.0,102730.0,0.0001222]
[1738349927369,1.49904161,102740.0,102730.0,0.0001222]
[1738349927589,1.39804485,102740.0,102730.0,0.0001222]
[1738349927797,1.11747525,102740.0,102730.0,0.0001222]
[1738349928000,1.12547525,102740.0,102730.0,0.0001222]
[1738349928426,1.11783525,102740.0,102730.0,0.0001222]
[1738349928597,1.12547525,102740.0,102730.0,0.0001222]
[1738349929053,1.11783525,102740.0,102730.0,0.0001222]
[1738349929431,1.10883525,102740.0,102730.0,0.0001222]
[1738349929866,1.11383525,102740.0,102730.0,0.0001222]
[1738349930054,1.10883525,102740.0,102730.0,0.0001222]
[1738349930255,0.153999,102740.0,102730.0,0.0001222]
[1738349930464,0.009,102740.0,102730.0,0.0251222]
[1738349930669,0.009,102740.0,102730.0,0.7131352]
[1738349930877,0.009,102740.0,102730.0,0.5671222]
[1738349931221,0.001,102740.0,102730.0,0.5671222]
[1738349931587,0.001,102740.0,102730.0,0.7131352]
[1738349932044,0.001,102740.0,102730.0,0.7919352]
[1738349932380,0.001,102740.0,102730.0,0.6459222]
[1738349932794,0.001,102740.0,102730.0,0.7919352]
[1738349932795,0.002,102740.0,102730.0,0.7919352]
[1738349933139,0.001,102740.0,102730.0,1.22580156]
[1738349933544,0.001,102740.0,102730.0,1.22880156]
[1738349933975,0.001,102740.0,102730.0,1.03483512]
[1738349934201,0.175985,102750.0,102740.0,0.023]
[1738349934614,0.145999,102740.0,102730.0,0.6772222]
[1738349934818,0.145999,102740.0,102730.0,0.5984222]
[1738349935000,0.145999,102740.0,102730.0,0.5731222]
[1738349935975,0.14721567,102740.0,102730.0,0.0041222]
[1738349936174,0.24457243,102740.0,102730.0,0.0041222]
[1738349936483,1.10083525,102740.0,102730.0,0.0041222]
[1738349936682,1.38904485,102740.0,102730.0,0.0041222]
[1738349937092,1.38904485,102740.0,102730.0,0.0071222]
[1738349938099,1.38904485,102740.0,102730.0,0.0041222]
[1738349938259,1.38904485,102740.0,102730.0,0.0001222]
[1738349938457,1.48640161,102740.0,102730.0,0.0001222]
[1738349938979,1.49640161,102740.0,102730.0,0.0001222]
[1738349939150,1.48640161,102740.0,102730.0,0.0001222]
[1738349939376,1.49540161,102740.0,102730.0,0.0011222]
[1738349939574,1.49840161,102740.0,102730.0,0.0011222]
[1738349939981,1.49540161,102740.0,102730.0,0.0011222]
[1738349940333,1.39804485,102740.0,102730.0,0.0011222]
[1738349940547,1.40704485,102740.0,102730.0,0.0011222]
[1738349941556,1.41704485,102740.0,102730.0,0.0011222]
[1738349941756,1.44468485,102740.0,102730.0,2e-07]
[1738349942600,1.43468485,102740.0,102730.0,2e-07]
[1738349942811,1.53204161,102740.0,102730.0,2e-07]
[1738349943008,1.68204161,102740.0,102730.0,2e-07]
[1738349946416,1.68184161,102740.0,102730.0,2e-07]
[1738349949037,0.242513,102730.0,102720.0,9.8e-07]
[1738349949261,0.75752627,102730.0,102720.0,9.8e-07]
[1738349949475,0.90752627,102730.0,102720.0,9.8e-07]
[1738349949888,0.71655983,102730.0,102720.0,9.8e-07]
[1738349950299,0.72355983,102730.0,102720.0,9.8e-07]
[1738349950662,0.71655983,102730.0,102720.0,9.8e-07]
[1738349950899,0.72555983,102730.0,102720.0,0.00100098]
[1738349951293,0.88752627,102730.0,102720.0,9.8e-07]
[1738349951497,0.89652627,102730.0,102720.0,9.8e-07]
[1738349951696,0.51459339,102730.0,102720.0,9.8e-07]
[1738349952036,0.52259339,102730.0,102720.0,9.8e-07]
[1738349953334,0.53259339,102730.0,102720.0,9.8e-07]
[1738349953546,0.55023339,102730.0,102720.0,9.8e-07]
[1738349954132,0.53023339,102730.0,102720.0,9.8e-07]
[1738349955240,0.54023339,102730.0,102720.0,9.8e-07]
[1738349955406,0.55023339,102730.0,102720.0,9.8e-07]
[1738349955801,0.54259339,102730.0,102720.0,9.8e-07]
[1738349956007,0.27789616,102730.0,102720.0,9.8e-07]
[1738349956623,0.43789616,102730.0,102720.0,9.8e-07]
[1738349959397,1.10087825,102710.0,102700.0,0.13155683]
[1738349959590,0.162042,102710.0,102700.0,0.14473809]
[1738349959844,0.153042,102710.0,102700.0,0.16773809]
[1738349960040,0.153042,102710.0,102700.0,0.15455683]
[1738349960275,0.153042,102710.0,102700.0,0.69655683]
[1738349960276,0.014,102710.0,102700.0,0.69655683]
[1738349960445,0.007,102710.0,102700.0,1.16481682]
[1738349960754,0.001,102710.0,102700.0,1.22229788]
[1738349960999,0.00025662,102740.0,102730.0,0.1002]
[1738349961205,0.14625562,102740.0,102730.0,0.6422]
[1738349961781,0.14625562,102740.0,102730.0,0.6192]
[1738349962341,0.14625562,102740.0,102730.0,0.70872]
[1738349962546,0.00225662,102740.0,102730.0,0.70872]
[1738349962965,0.00225662,102740.0,102730.0,0.854733]
[1738349963161,0.00225662,102740.0,102730.0,1.178633]
[1738349963383,0.00225662,102740.0,102730.0,1.51646129]
[1738349963796,0.01385662,102750.0,102740.0,0.1007]
[1738349963973,0.01385662,102750.0,102740.0,0.12010661]
[1738349964177,0.15984162,102750.0,102740.0,0.12010661]
[1738349965275,0.15984162,102750.0,102740.0,0.1007]
[1738349965483,0.25830139,102750.0,102740.0,0.0777]
[1738349965685,0.25830139,102750.0,102730.0,0.9193]
[1738349965686,0.145999,102740.0,102730.0,0.4537]
[1738349965910,0.24324216,102740.0,102730.0,0.3139]
[1738349967723,0.24424216,102740.0,102730.0,0.3169]
[1738349969151,0.24424216,102740.0,102730.0,0.3209]
[1738349970325,0.24424216,102740.0,102730.0,0.007]
[1738349970594,0.25424216,102740.0,102730.0,0.007]
[1738349970856,0.24424216,102740.0,102730.0,0.007]
[1738349971097,0.24424216,102740.0,102700.0,0.85815683]
[1738349971098,0.146042,102710.0,102700.0,0.85815683]
[1738349971388,0.1606462,102710.0,102700.0,0.00225683]
[1738349971632,0.24450238,102710.0,102700.0,0.00225683]
[1738349971893,0.24328516,102710.0,102700.0,0.00225683]
[1738349973681,0.28226816,102710.0,102700.0,0.00225683]
[1738349973887,0.37962492,102710.0,102700.0,0.00625683]
[1738349974111,0.28226816,102710.0,102700.0,0.00625683]
[1738349974550,0.28226816,102710.0,102700.0,0.00225683]
[1738349974551,0.29090816,102710.0,102700.0,0.00225683]
[1738349975007,0.29990816,102710.0,102700.0,0.00325683]
[1738349975211,0.26092516,102710.0,102700.0,0.00325683]
[1738349976374,0.156042,102710.0,102700.0,0.00325683]
[1738349976587,0.156042,102710.0,102700.0,0.67165683]
[1738349976793,0.01,102710.0,102700.0,0.92645479]
[1738349976998,0.01,102710.0,102700.0,1.16975395]
[1738349977467,0.01,102710.0,102700.0,1.36093908]
[1738349977685,0.14625562,102740.0,102730.0,0.3049]
[1738349977896,0.14625562,102740.0,102730.0,0.8469]
[1738349978106,0.14625562,102740.0,102730.0,0.9114611]
[1738349978526,0.00025662,102740.0,102730.0,0.9114611]
[1738349978960,0.00025662,102740.0,102730.0,1.00870426]
[1738349979168,0.00125662,102740.0,102730.0,0.9114611]
[1738349979375,0.00025662,102740.0,102730.0,1.0574741]
[1738349979582,0.00125662,102740.0,102730.0,1.0574741]
[1738349980004,0.14625562,102740.0,102730.0,0.8469]
[1738349980218,0.14625562,102740.0,102730.0,0.1319]
[1738349980434,0.24571546,102740.0,102730.0,0.004]
[1738349980637,0.24449878,102740.0,102730.0,0.004]
[1738349980841,0.146013,102730.0,102720.0,0.0811]
[1738349980998,0.24447309,102730.0,102720.0,0.0811]
[1738349981216,0.24325616,102730.0,102720.0,0.0811]
[1738349982169,0.146013,102730.0,102720.0,0.0811]
[1738349982375,0.147013,102730.0,102720.0,0.0891]
[1738349983588,0.147013,102730.0,102720.0,0.6351]
[1738349983589,0.148013,102730.0,102720.0,0.6351]
[1738349984896,0.148013,102730.0,102720.0,0.554]
[1738349985881,0.148013,102730.0,102720.0,0.5541222]
[1738349987316,0.148013,102730.0,102720.0,0.62163442]
[1738349987518,0.148013,102730.0,102720.0,0.5541222]
[1738349987759,0.148013,102730.0,102720.0,0.0121222]
[1738349988109,0.148013,102730.0,102720.0,0.5541222]
[1738349988847,0.148013,102730.0,102720.0,0.5771222]
[1738349989108,0.148013,102730.0,102720.0,0.0351222]
[1738349989320,0.002,102730.0,102720.0,0.05073442]
[1738349989539,0.002,102730.0,102720.0,0.59273442]
[1738349989748,0.148013,102730.0,102720.0,0.59273442]
[1738349989961,0.148013,102730.0,102720.0,0.5771222]
[1738349990186,0.148013,102730.0,102720.0,0.5541222]
[1738349990528,0.14922984,102730.0,102720.0,0.5541222]
[1738349990928,0.246473,102730.0,102720.0,0.5541222]
[1738349991174,0.24525616,102730.0,102720.0,0.5541222]
[1738349991390,0.34261292,102730.0,102720.0,0.5541222]
[1738349991719,0.24525616,102730.0,102720.0,0.5541222]
[1738349991893,0.24525616,102730.0,102720.0,0.0121222]
[1738349994090,0.25285616,102730.0,102720.0,0.0121222]
[1738349994863,0.25185616,102730.0,102720.0,0.0081222]
[1738349995668,0.25085616,102730.0,102720.0,0.0001222]
[1738349995874,0.35721292,102730.0,102720.0,0.0011222]
[1738349996155,0.36321292,102730.0,102720.0,0.0011222]
[1738349996307,0.37321292,102730.0,102720.0,0.0001222]
[1738349996516,0.41851292,102730.0,102720.0,0.0001222]
[1738349996684,0.42751292,102730.0,102720.0,0.0011222]
[1738349997465,0.32015616,102730.0,102720.0,0.0011222]
[1738349997671,0.32015616,102730.0,102720.0,2e-07]
[1738349997865,0.33015616,102730.0,102720.0,2e-07]
[1738349998046,0.50015616,102730.0,102720.0,2e-07]
[1738349998400,0.50041278,102730.0,102720.0,2e-07]
[1738349998799,0.59776954,102730.0,102720.0,2e-07]
[1738349999561,0.156028,102720.0,102710.0,4e-07]
[1738349999772,1.20932478,102720.0,102710.0,4e-07]
[1738349999980,1.20810741,102720.0,102710.0,4e-07]
[1738350000169,0.146042,102710.0,102700.0,0.00131723]
[1738350000444,0.146042,102710.0,102700.0,0.54331723]
[1738350000650,0.146029,102720.0,102700.0,0.76946039]
[1738350000880,0.009,102720.0,102710.0,0.001]
[1738350001088,0.014,102720.0,102710.0,0.001]
[1738350001298,0.96863625,102720.0,102710.0,0.001]
[1738350001565,1.15789039,102720.0,102710.0,0.001]
[1738350002729,1.17549039,102720.0,102710.0,0.001]
[1738350002937,0.146042,102710.0,102700.0,2.3e-07]
[1738350003115,0.24450257,102710.0,102700.0,2.3e-07]
[1738350003320,0.09724316,102710.0,102690.0,0.00025578]
[1738350003532,0.09846058,102700.0,102690.0,0.00025578]
[1738350003731,1.05329683,102700.0,102690.0,0.00025578]
[1738350003933,1.05207941,102700.0,102690.0,0.00025578]
[1738350004539,1.05207941,102700.0,102690.0,0.00125578]
[1738350004952,1.19813541,102700.0,102690.0,0.00125578]
[1738350005156,1.10089225,102700.0,102690.0,0.00025578]
[1738350005354,1.10189225,102700.0,102690.0,0.00025578]
[1738350005556,1.29649217,102700.0,102690.0,0.00025578]
[1738350005759,1.30249217,102700.0,102690.0,0.00025578]
[1738350006018,1.29649217,102700.0,102690.0,0.00025578]
[1738350006207,1.19913541,102700.0,102690.0,0.00025578]
[1738350006413,1.20813541,102700.0,102690.0,0.00025578]
[1738350006585,1.19913541,102700.0,102690.0,0.00025578]
[1738350006787,1.20673541,102700.0,102690.0,0.00025578]
[1738350007185,1.30409217,102700.0,102690.0,0.00025578]
[1738350007448,1.20673541,102700.0,102690.0,0.00025578]
[1738350008012,1.21273541,102700.0,102690.0,0.00025578]
[1738350008220,0.14607,102690.0,102680.0,0.53751156]
[1738350008621,0.19581734,102690.0,102670.0,1.26498116]
[1738350008913,0.146084,102680.0,102670.0,1.26498116]
[1738350009200,0.146084,102680.0,102670.0,1.28798116]
[1738350009426,0.146084,102680.0,102670.0,1.82549272]
[1738350009797,1.10092025,102680.0,102670.0,1.82549272]
[1738350009993,1.10092025,102680.0,102670.0,1.80249272]
[1738350010202,1.19827701,102680.0,102670.0,1.7213708]
[1738350010718,1.19827701,102680.0,102670.0,1.18385924]
[1738350010719,1.29552017,102680.0,102670.0,1.18385924]
[1738350011582,1.29652017,102680.0,102670.0,1.18385924]
[1738350012729,1.30552017,102680.0,102670.0,1.17653635]
[1738350012935,1.43722017,102680.0,102670.0,1.17653635]
[1738350013142,1.43882017,102680.0,102670.0,1.17653635]
[1738350013347,1.25296341,102680.0,102670.0,1.17653635]
[1738350013559,1.21076341,102680.0,102670.0,1.17653635]
[1738350013752,1.20316341,102680.0,102670.0,1.17653635]
[1738350013955,1.27056341,102680.0,102670.0,1.13757635]
[1738350014238,1.27056341,102680.0,102670.0,1.02886691]
[1738350014239,1.59052017,102680.0,102670.0,1.02886691]
[1738350014451,1.59052017,102680.0,102670.0,0.98990691]
[1738350014707,1.61052017,102680.0,102670.0,0.98990691]
[1738350014899,1.60652017,102680.0,102670.0,0.98990691]
[1738350015106,1.62952017,102680.0,102670.0,0.91198691]
[1738350015317,1.63052017,102680.0,102670.0,0.45089908]
[1738350015556,1.57852017,102680.0,102670.0,0.05819908]
[1738350015765,0.296113,102660.0,102650.0,0.1025573]
[1738350015969,1.3677499,102660.0,102650.0,0.0051373]
[1738350016170,1.19819241,102660.0,102650.0,0.0051373]
[1738350016970,1.20719241,102660.0,102650.0,0.0051373]
[1738350018509,1.21519241,102660.0,102650.0,0.0051373]
[1738350018710,1.31254917,102660.0,102650.0,0.0051373]
[1738350018923,1.20719241,102660.0,102650.0,0.0051373]
[1738350019135,1.21479241,102660.0,102650.0,0.0523373]
[1738350019350,1.22179241,102660.0,102650.0,0.0523373]
[1738350020252,1.21479241,102660.0,102650.0,0.58984886]
[1738350020521,0.009,102660.0,102650.0,0.67463432]
[1738350020747,0.00025662,102710.0,102670.0,0.268289]
[1738350020748,0.194752,102700.0,102670.0,0.268289]
[1738350020956,0.146084,102680.0,102670.0,0.6642]
[1738350021170,0.29323746,102690.0,102670.0,0.6642]
[1738350021171,0.146082,102690.0,102670.0,0.6642]
[1738350021383,0.00025662,102710.0,102680.0,0.23738513]
[1738350021601,0.00025662,102710.0,102700.0,0.38364113]
[1738350021820,0.00025662,102710.0,102700.0,1.27618429]
[1738350022030,0.00025662,102710.0,102700.0,1.08499916]
[1738350022243,0.00025662,102730.0,102720.0,0.227028]
[1738350022452,0.00025662,102740.0,102730.0,0.169013]
[1738350022668,0.00025662,102740.0,102730.0,1.12544129]
[1738350022874,0.00025662,102740.0,102730.0,0.668]
[1738350023119,0.24471544,102740.0,102730.0,0.126]
[1738350023326,0.33601863,102740.0,102730.0,0.126]
[1738350023747,0.24349878,102740.0,102730.0,0.126]
[1738350023950,0.24349878,102740.0,102730.0,0.081]
[1738350024158,0.24549878,102740.0,102730.0,0.09]
[1738350024370,0.24435121,102740.0,102730.0,0.09]
[1738350024575,0.24335121,102740.0,102730.0,0.082]
[1738350024994,0.09735221,102740.0,102730.0,0.082]
[1738350025198,0.001,102740.0,102730.0,0.082]
[1738350025398,0.145999,102740.0,102730.0,0.081]
[1738350026012,0.147999,102740.0,102730.0,0.081]
[1738350026221,0.002,102740.0,102730.0,0.773]
[1738350026430,0.01385662,102750.0,102730.0,0.968913]
[1738350026634,0.001,102740.0,102730.0,0.968913]
[1738350027306,0.002,102740.0,102730.0,0.6809]
[1738350027922,0.002,102740.0,102730.0,0.1389]
[1738350028124,0.002,102740.0,102730.0,0.826913]
[1738350028355,0.001,102740.0,102730.0,0.825913]
[1738350028922,0.001,102740.0,102730.0,0.6799]
[1738350029330,0.001,102740.0,102730.0,0.825913]
[1738350029530,0.002,102740.0,102730.0,0.826913]
[1738350029933,0.002,102740.0,102730.0,0.6809]
[1738350030133,0.24645882,102740.0,102730.0,0.6809]
[1738350030333,0.2907384,102740.0,102730.0,0.009]
[1738350030708,0.24524216,102740.0,102730.0,0.009]
[1738350030914,0.002,102740.0,102730.0,0.204713]
[1738350031225,0.002,102740.0,102730.0,0.845213]
[1738350031395,0.002,102740.0,102730.0,1.28264129]
[1738350031396,0.001,102740.0,102730.0,1.28264129]
[1738350031602,0.001,102740.0,102730.0,1.37999805]
[1738350031804,0.01385662,102750.0,102740.0,0.274399]
[1738350032140,0.01385662,102750.0,102740.0,0.56282729]
[1738350033121,0.00025642,102760.0,102750.0,0.173]
[1738350033344,0.00025642,102760.0,102750.0,0.49932816]
[1738350033503,0.00025642,102760.0,102750.0,0.53446812]
[1738350033704,0.00025642,102760.0,102750.0,1.07646812]
[1738350034062,0.00025642,102790.0,102750.0,1.16726825]
[1738350034267,0.00025642,102790.0,102780.0,0.63792713]
[1738350034455,0.00025642,102790.0,102780.0,1.08598516]
[1738350034851,0.00025642,102790.0,102780.0,1.14497005]